Cogmind - Beta 16 *** ADVENTURER MODE // 2025.10.22 @ 18:50:21 Player: Big Tortoise Result: Self-destructed Performance ------------- Evolutions (1) 500 Regions Visited (3) 600 Robots Destroyed (4) 20 Value Destroyed (171) 171 Prototype IDs (0) 0 Alien Tech Used (0) 0 Bonus (0) 0 TOTAL SCORE: 1291 Bonus ------- None Cogmind --------- Core Integrity 321/400 Matter 300/300 Energy 100/100 System Corruption 0% Temperature Cool (0) Movement Core (100) Ox1 Location -9/Storage Parts ------- > --- POWER (1) -------- (None) > --- PROPULSION (3) --- (None) > --- UTILITY (3) ------ Small Storage Unit > --- WEAPON (2) ------- (None) > --- INVENTORY (8) ---- Heat Sink Light Armor Plating Beam Rifle Peak State ------------ > --- POWER ------------ Light Ion Engine > --- PROPULSION ------- Wheel Compact Wheel > --- UTILITY ---------- Small Storage Unit > --- WEAPON ----------- Light Assault Rifle > --- INVENTORY -------- (None) [Rating: 5] Favorites ----------- Power Light Ion Engine Engine Light Ion Engine Propulsion Wheel Wheel Wheel Utility Small Storage Unit Storage Small Storage Unit Protection Light Armor Plating Weapon Light Assault Rifle Ballistic Gun Light Assault Rifle Build | -11 -10 -9 -9 ------- Run | Yrd Mat Mat Sto Slots Evolved 2 | . . 2 . Power . | . . . . Propulsion 1 | . . 1 . Utility 1 | . . 1 . Weapon . | . . . . Parts Attached 6 | 5 . . 1 Power 1 | 1 . . . Engine 1 | 1 . . . Core . | . . . . Reactor . | . . . . Propulsion 2 | 2 . . . Treads . | . . . . Leg . | . . . . Wheel 2 | 2 . . . Hover . | . . . . Flight . | . . . . Utility 2 | 1 . . 1 Device . | . . . . Storage 1 | 1 . . . Processor . | . . . . Hackware . | . . . . Protection 1 | . . . 1 Artifact . | . . . . Weapon 1 | 1 . . . Energy Gun . | . . . . Energy Cannon . | . . . . Ballistic Gun 1 | 1 . . . Ballistic Cannon . | . . . . Launcher . | . . . . Special Weapon . | . . . . Impact Weapon . | . . . . Slashing Weapon . | . . . . Piercing Weapon . | . . . . Special Melee Weapon . | . . . . Unidentified Prototypes . | . . . . Parts Lost 4 | . . . 4 Power 1 | . . . 1 Propulsion 2 | . . . 2 Utility . | . . . . Weapon 1 | . . . 1 Highest Loss Streak 2 | . . . 2 To Critical Strikes 1 | . . . 1 Average Backups . | . . . 1 Power . | . . . . Propulsion . | . . . . Utility . | . . . . Weapon . | . . . . Tool/Special . | . . . . Unused Backups 4 | . . . 4 Power . | . . . . Propulsion . | . . . . Utility 2 | . . . 2 Weapon 1 | . . . 1 Tool/Special 1 | . . . 1 Average Slot Usage (%) 49 | . 71 55 37 Engine 7 | . 14 11 2 Wheel 17 | . 28 22 11 Storage 11 | . 14 11 11 Protection 1 | . . . 2 Ballistic Gun 11 | . 14 11 10 Peak Build Rating 5 | 5 5 5 5 Average Rating 3 | 3 5 5 3 On Entrance 3 | . 5 5 5 Avg Prop Armor Cover (%) . | . . . . Naked Turns . | . . . . Heaviest Build 9 | 9 9 9 9 Greatest Support 26 | 26 26 26 26 Greatest Overweight (x) 1 | . . . 1 Average Overweight (x) . | . . . . Largest Inventory Capacity 8 | 8 8 8 8 Average Capacity 7 | 6 8 8 8 Most Carried 4 | . . . 4 Average Carried . | . . . 1 Final Capacity 8 | 8 8 8 8 Final Carried 3 | . . . 3 Class Distribution -------------------- 100% | Mutant Dominant Class ---------------- Mutant | -10/Materials Mutant | -9/Materials Mutant | -9/Storage Resources | -11 -10 -9 -9 ----------- Run | Yrd Mat Mat Sto Matter Collected 290 | 192 71 . 27 Remotely . | . . . . Salvage Created 195 | . 86 . 109 Parts 12 | . 3 . 9 Haulers Intercepted . | . . . . Recyclers Shooed . | . . . . Parts Field Recycled . | . . . . Retrieved Matter . | . . . . Parts Self-Destructed . | . . . . Prevented . | . . . . Parts Restored . | . . . . Kills | -11 -10 -9 -9 ------- Run | Yrd Mat Mat Sto Combat Hostiles Destroyed 4 | . 2 . 2 Guns 4 | . 2 . 2 Classes Destroyed 2 | . 1 . 1 Grunt 2 | . 2 . . Sentry 2 | . . . 2 Best Kill Streak 2 | . 2 . 2 Combat Bots Only 2 | . 2 . 2 Max Kills in Single Turn 1 | . 1 . 1 Gunslinging . | . . . . Exploded . | . . . . Melee . | . . . . Uniques/NPCs Destroyed . | . . . . Combat | -11 -10 -9 -9 -------- Run | Yrd Mat Mat Sto Hostile Shots Fired 44 | . 17 . 27 Missed 13 | . 5 . 8 Hits 31 | . 12 . 19 Projectile 31 | . 12 . 19 Critical Strikes 1 | . . . 1 Damage Taken 374 | . 121 . 253 Core 95 | . 16 . 79 Absorbed by Shields . | . . . . Ignored by Resistances 105 | . 35 . 70 Core Remaining (%) 96 | 100 93 . . Volleys Fired 30 | . 13 . 17 Largest 1 | . 1 . 1 Hottest 20 | . 20 . 20 Shots Fired 30 | . 13 . 17 Gun 30 | . 13 . 17 Cannon . | . . . . Launcher . | . . . . Special . | . . . . Kinetic 30 | . 13 . 17 Thermal . | . . . . Explosive . | . . . . Electromagnetic . | . . . . Robot Hit Streak 10 | . 8 . 10 Robot Miss Streak 1 | . 1 . 1 Penetration Max . | . . . . Secondary Targets . | . . . . Shots Hit Robots 27 | . 12 . 15 Core Hits 12 | . 6 . 6 Critical Kills . | . . . . Critical Parts Destroyed . | . . . . Critical Strikes . | . . . . Melee Attacks . | . . . . Impact . | . . . . Slashing . | . . . . Piercing . | . . . . Sneak Attacks . | . . . . Combat Hostiles . | . . . . Follow-up Attacks . | . . . . Damage Inflicted 209 | . 95 . 114 Guns 209 | . 95 . 114 Cannons . | . . . . Explosions . | . . . . Melee . | . . . . Ramming . | . . . . Kinetic 209 | . 95 . 114 Thermal . | . . . . Explosive . | . . . . Electromagnetic . | . . . . Impact . | . . . . Slashing . | . . . . Piercing . | . . . . Highest Corruption . | . . . . Average Corruption . | . . . . Corruption Purged . | . . . . Corruption Blocked . | . . . . Overload Shots . | . . . . Overflow Damage . | . . . . Projectiles . | . . . . Explosions . | . . . . Melee . | . . . . Knockbacks . | . . . . Impact . | . . . . Kinetic . | . . . . Secondary . | . . . . Self-Inflicted Damage . | . . . . Shots . | . . . . Rammed . | . . . . Targets Rammed . | . . . . Kicked . | . . . . Crushed . | . . . . Highest Temperature 15 | . 15 . 1 Average Temperature 9 | . 10 . 1 Received Heat Transfer 162 | . 90 . 72 Siege Activations . | . . . . Martial Activations . | . . . . Shielding Activations . | . . . . Robots Disrupted . | . . . . Combat Hostiles . | . . . . Robots Corrupted . | . . . . Combat Hostiles . | . . . . Parts Fried . | . . . . Impact Corruptions . | . . . . Robots Melted . | . . . . Combat Hostiles . | . . . . Parts Melted . | . . . . Heat Transferred . | . . . . Parts Sabotaged . | . . . . Parts Stolen . | . . . . Parts Stripped . | . . . . Power Chain Reactions . | . . . . Alert | -11 -10 -9 -9 ------- Run | Yrd Mat Mat Sto Maximum Alert Level . | . . . . Low Security (%) 100 | 100 100 100 100 Level 1 . | . . . . Level 2 . | . . . . Level 3 . | . . . . Level 4 . | . . . . Level 5 . | . . . . High Security . | . . . . Max Security . | . . . . Peak Influence 64 | . 64 19 50 Initial 19 | . . 19 3 Average 16 | . 22 18 18 Influence Increases 129 | . 64 . 65 Destroy 0b10 Robot/C 80 | . 40 . 40 Destroy Leader 30 | . 10 . 20 Successful Hack 19 | . 14 . 5 Influence Decreases 129 | . 10 45 74 Entered New Map 41 | . . 35 6 Time Decay 78 | . 10 10 58 Lost Part 10 | . . . 10 Squads Dispatched 1 | . . . 1 Investigation 1 | . . . 1 Extermination . | . . . . Reinforcement . | . . . . Assault . | . . . . Garrison . | . . . . Intercept . | . . . . Searches Triggered . | . . . . Construction Impeded . | . . . . Haulers Reinforced . | . . . . Active Scanning Responses . | . . . . Cargo Convoy Interrupts . | . . . . Stealth | -11 -10 -9 -9 --------- Run | Yrd Mat Mat Sto Distress Signals . | . . . . Communications Jammed . | . . . . Distress Signals . | . . . . Times Spotted 7 | . 2 . 5 Peak Tracking Total 3 | . 2 . 3 Tactical Retreats . | . . . . Traps | -11 -10 -9 -9 ------- Run | Yrd Mat Mat Sto Traps Triggered 2 | . 1 . 1 Indirectly . | . . . . Trap Hack Attempts . | . . . . Triggered . | . . . . Disarmed . | . . . . Reprogrammed . | . . . . Reused . | . . . . Traps Extracted . | . . . . Installed . | . . . . Triggered . | . . . . Machines | -11 -10 -9 -9 ---------- Run | Yrd Mat Mat Sto Machines Disabled . | . . . . Max in Single Turn . | . . . . Machines Repaired . | . . . . Machines Dismantled . | . . . . Machines Sabotaged . | . . . . Overloaded Fab Kills . | . . . . Hacking | -11 -10 -9 -9 --------- Run | Yrd Mat Mat Sto Machines Accessed 4 | . 2 . 2 Terminals 4 | . 2 . 2 Fabricators . | . . . . Repair Stations . | . . . . Recycling Units . | . . . . Scanalyzers . | . . . . Garrison Access . | . . . . Total Hacks 11 | . 6 . 5 Successful 4 | . 3 . 1 Failed 7 | . 3 . 4 Catastrophic 1 | . . . 1 Database Lockouts . | . . . . Manual 6 | . 6 . . Terminals 11 | . 6 . 5 Fabricators . | . . . . Repair Stations . | . . . . Recycling Units . | . . . . Scanalyzers . | . . . . Garrison Access . | . . . . Terminal Hacks 2 | . 1 . 1 Robot Analysis 1 | . . . 1 Level Access Points 1 | . 1 . . Fabricator Hacks . | . . . . Repair Station Hacks . | . . . . Recycling Unit Hacks . | . . . . Scanalyzer . | . . . . Garrison Access Hacks . | . . . . Unauthorized Hacks 2 | . 2 . . Terminals 2 | . 2 . . Botnet 2 | . 2 . . Fabricators . | . . . . Repair Stations . | . . . . Recycling Units . | . . . . Scanalyzers . | . . . . Garrison Access . | . . . . Data Cores Recovered . | . . . . Used . | . . . . Hacking Detections 3 | . 1 . 2 Full Trace Events 1 | . . . 1 Feedback Events . | . . . . Feedback Blocked . | . . . . Robot Schematics Acquired . | . . . . Robots Built . | . . . . Authchips . | . . . . Time . | . . . . Total Robot Build Rating . | . . . . Part Schematics Acquired . | . . . . Parts Built . | . . . . Authchips . | . . . . Time . | . . . . Total Part Build Rating . | . . . . Part Studies Acquired . | . . . . Parts Repaired . | . . . . Time . | . . . . Parts Recycled . | . . . . Recycled Matter . | . . . . Retrieved Matter . | . . . . Retrieved Components . | . . . . Parts Scanalyzed . | . . . . Part Schematics Acquired . | . . . . Parts Damaged . | . . . . Bothacking | -11 -10 -9 -9 ------------ Run | Yrd Mat Mat Sto Used RIF Installer . | . . . . Robots Hacked . | . . . . Non-combat . | . . . . Combat . | . . . . Robot Hacks Applied . | . . . . Relay Couplers Released . | . . . . Fabnet Peak Effective % . | . . . . Robots Rewired . | . . . . Allies Hacked . | . . . . Hacks Repelled . | . . . . Allies | -11 -10 -9 -9 -------- Run | Yrd Mat Mat Sto Total Allies . | . . . . Largest Group . | . . . . Highest-Rated Group . | . . . . Highest-Rated Ally . | . . . . Total Orders . | . . . . Ally Attacks . | . . . . Total Damage . | . . . . Kills . | . . . . Allies Corrupted . | . . . . Allies Melted . | . . . . Intel | -11 -10 -9 -9 ------- Run | Yrd Mat Mat Sto Active Infowar (turns) . | . . . . Robot Analysis Total 1 | . . . 1 Derelict Logs Recovered . | . . . . Drone Launches . | . . . . Drone Recoveries . | . . . . Exploration | -11 -10 -9 -9 ------------- Run | Yrd Mat Mat Sto Turns Passed 304 | 46 76 21 161 Spaces Moved 262 | 45 59 24 134 Core 47 | 4 . . 43 Treads . | . . . . Legs . | . . . . Wheels 215 | 41 59 24 91 Hover . | . . . . Flight . | . . . . Fastest Speed 50 | 50 90 90 80 Average Speed 88 | 86 90 90 89 Slowest Speed 100 | 90 90 90 100 Overloaded Moves . | . . . . Propulsion Burnouts . | . . . . Robots Hopped . | . . . . Potential Cave-ins . | . . . . Cave-ins Triggered . | . . . . Exploration Rate (%) 15 | 4 23 6 27 Regions Visited 3 Branch Regions 1 Pre-discovered Areas . | . . . . Known Exits Taken 1 | . 1 . . Unknown Exits Taken 2 | 1 . 1 . Scrap Searched . | . . . . Spaces Dug . | . . . . Terrain Destroyed . | . . . . Melee . | . . . . Projectile . | . . . . AOE . | . . . . Terrain Rammed . | . . . . Walls Destroyed . | . . . . Machines Disabled . | . . . . Actions | -11 -10 -9 -9 --------- Run | Yrd Mat Mat Sto Total 305 | 49 71 23 162 Wait 4 | . . . 4 Move 259 | 44 58 23 134 Hop . | . . . . Pick Up 4 | . . . 4 Fast Attach 6 | 5 . . 1 Attach . | . . . . Detach . | . . . . Swap . | . . . . Drop 2 | . . . 2 Fire 30 | . 13 . 17 Melee . | . . . . Ram . | . . . . Kick . | . . . . Crush . | . . . . Escape Stasis . | . . . . Rewire . | . . . . Trap . | . . . . Miscellaneous . | . . . . Route ------- -11/Scrapyard -10/Materials (discovered 3 exits: *Mat x3) -9/Materials -9/Storage History --------- Turn | Location | Event 16 | -11/Scrapyard | Discovered new exit (range 15) 47 | -11/Scrapyard | Entered Materials 105 | -10/Materials | Identified exit to Materials 123 | -10/Materials | Entered another Materials area 123 | -9/Materials | Evolved 2 slots: Propulsion x1, Utility x1 123 | -9/Materials | Discovered new exit (range 15) 144 | -9/Materials | Entered Storage 302 | -9/Storage | Build established: Mutant 305 | -9/Storage | Self-destructed Last Messages --------------- 00208_ Y-45 Defender destroyed. 00217_ Acquired 17 matter. 00220_ Acquired Lgt. Armor Plating. 00221_ Acquired 10 matter. 00226_ Acquired Beam Rifle. 00228_ Acquired Heat Sink. 00231_ Acquired Lgt. Armor Plating. 00238_ Acquired Welding Torch. 00239_ Dropped Welding Torch. 00246_ Connecting with Terminal... 00246_ ALERT: Suspicious activity at Terminal S011. Dispatching Investigation squad. 00261_ Triggered Explosive Trap. 00261_ An explosion rips through the floor. 00261_ Wheel destroyed. 00261_ K-01 Serf collects debris. 00262_ Dropped Lgt. Armor Plating. 00264_ K-01 Serf collects debris. 00297_ Critical hit (Destroy). 00297_ Lgt. Assault Rifle destroyed. Map ----- +----------------------------------------------------+ | | | | | | | ?????????????????????????????????????????????????? | | ?????????????????????????????????????????????????? | | ?????????????????????????????????????????????????? | | ?????????????????????????????????????????????????? | | ?????????????????????????????????????????????????? | | ?????????????????????????????????????????????????? | | ?????????????????????????????????????????????????? | | ?????????????????????????????????????????????? ??? | | ?????????????????????????????????????????????? ? | | ?????????????????????????????#?#+????????????? ? | | ?????????????????????????????# ???????????? ? | | ?????????????????????????????# ? ???????????? ? | | ?????????????????????????????# ""??????????# #? | | ?????????????????????????#+### """?????????# #? | | ????????????????????????? ## #???????# #? | | ????????????????????????? #?# """ #???????# #? | | ?????????????????????????" #?? """ ###+##### ## | | ?????????????????????????" #??? ] """?+ ^ | | ????????????????????????"" #???? ??# | | ????????????????????????" #????##"#### ^ | | ????????????????????????" #????# ^ | | ??????????????????#k""""" ###### | | ??????????????????# a@ + | | ??????????????????############### # | | ????????????????????????????????# ###########+## | | ????????????????????????????????# #????????# | | ????????????????????????????????# #????????# | | ????????????????????????????????# #????????#!! | | ????????????????????????????????# #????????#!! | | ????????????????????????????????# #????????#! | | ????????????????????????????????# #????????# | | ????????????????????????????????# #????????##### | | ????????????????????????????????# #????????????? | | ????????????????????????????????# #????????????? | | ????????????????????????????????+ +????????????? | | ????????????????????????????????# #????????????? | | ????????????????????????????????# #????????????? | | ????????????????????????????????? ?????????????? | | ?????????????????????????????????????????????????? | | ?????????????????????????????????????????????????? | | ?????????????????????????????????????????????????? | | ?????????????????????????????????????????????????? | | ?????????????????????????????????????????????????? | | ?????????????????????????????????????????????????? | | ?????????????????????????????????????????????????? | | ?????????????????????????????????????????????????? | | ?????????????????????????????????????????????????? | +----------------------------------------------------+ Best States ------------- Heat Dissipation 28 Energy Generation 10 Energy Capacity 125 Matter Stores 300 Matter Capacity 300 Sight Range 16 Terrain Scan Density 10 Armor Coverage 150 Resistance: KI 20 Resistance: TH 20 Resistance: EX 20 Resistance: EM 20 Resistance: I 20 Resistance: S 20 Resistance: P 20 Evasion (%) 44 Offensive Hacking 10 Item Schematics ----------------- None Robot Schematics ------------------ None Fabricated ------------ Nothing Repaired ---------- Nothing Studied --------- None Alien Tech Used ----------------- None Achievements -------------- None Challenges ------------ None Game ------ Seed CompanionMeleeMace Manual? 0 Play Time 00:04:16 Cumulative 429.0 hours Start 2025.10.22 @ 18:47:34 End 2025.10.22 @ 18:50:21 Sessions 1 Manual Loads 0 Difficulty Adventurer Special Mode None Game No. 77 Rogue 14 Adventurer 58 Explorer 5 Win Type - Total 26 Types 10/2/5/4/1/0/1/2/1/0 Lore% 68 Gallery% 74 Achievement% 49 Wizard Run 0 Options --------- Layout 0 ASCII 0 Keyboard 0 Movement Numpad Keybinds 0 Fullscreen 1 Font 24/Smallcaps Map View 76x50 Zoom Use 0% Tactical HUD 1 Map Filters NONE Filters NONE Steam 1 RUN: c37e47d1-ffd0-4c19-9920-5a70f33f7359